{"text_format":"3","workbook":"xlsx","n_sheets":1,"sheets":["Протокол ШЭ ВОШ по предмету"],"not_rendered":{"external_links":2,"defined_names":1},"read":"whole","date_system":"1900"}

{"sheet":"Протокол ШЭ ВОШ по предмету","index":0,"n_rows":66,"n_cols":15,"rows_kept":66}
["№","Фамилия","Имя","Отчество","Дата рождения","Пол","Участник с ОВЗ (да/нет)","Класс обучения","Класс участия","Балл","Максимальный балл","Статус","Призёр муниципального этапа прошлого года","ФИО учителя","Место работы учителя"]
[1,"Зарипова","Зарина","Радиковна",{"$f":"[2]шаблон!$M$749","v":"2007-12-01"},"Ж","нет",8,8,30.5,50,"Призер","Нет","Сахабиева Алиса Маратовна","Муниципальное бюджетное общеобразовательное учреждение \"Школа №27 с углубленным изучением отдельных предметов\" Нижнекамского муниципального района  Республики Татарстан"]
[2,"Томина","Александра","Владиславовна",{"$f":"[2]шаблон!$M$760","v":"2008-01-11"},"Ж","нет",8,8,29.5,50,"Призер","Нет","Сахабиева Алиса Маратовна","Муниципальное бюджетное общеобразовательное учреждение \"Школа №27 с углубленным изучением отдельных предметов\" Нижнекамского муниципального района  Республики Татарстан"]
[3,"Евдокимова","Ксения","Витальевна",{"$f":"[2]шаблон!$M$748","v":"2007-11-18"},"Ж","нет",8,8,25.5,50,"призер","Нет","Сахабиева Алиса Маратовна","Муниципальное бюджетное общеобразовательное учреждение \"Школа №27 с углубленным изучением отдельных предметов\" Нижнекамского муниципального района  Республики Татарстан"]
[4,"Чернова","Анастасия","Владимировна",{"$f":"[2]шаблон!$M$794","v":"2008-02-21"},"Ж","нет",8,8,24,50,"Участник","Нет","Сахабиева Алиса Маратовна","Муниципальное бюджетное общеобразовательное учреждение \"Школа №27 с углубленным изучением отдельных предметов\" Нижнекамского муниципального района  Республики Татарстан"]
[5,"Таранов","Никита","Сергеевич",{"$f":"[2]шаблон!$M$788","v":"2007-12-31"},"М","нет",8,8,22,50,"Участник","Нет","Сахабиева Алиса Маратовна","Муниципальное бюджетное общеобразовательное учреждение \"Школа №27 с углубленным изучением отдельных предметов\" Нижнекамского муниципального района  Республики Татарстан"]
[6,"Абызов"," Константин","Андреевич",{"$f":"[2]шаблон!$M$767","v":"2008-03-17"},"М","нет",8,8,21,50,"Участник","Нет","Сахабиева Алиса Маратовна","Муниципальное бюджетное общеобразовательное учреждение \"Школа №27 с углубленным изучением отдельных предметов\" Нижнекамского муниципального района  Республики Татарстан"]
[7,"Ласкова","Анастасия","Романовна",{"$f":"[2]шаблон!$M$810","v":"2008-12-08"},"Ж","нет",8,8,20.5,50,"Участник","Нет","Сахабиева Алиса Маратовна","Муниципальное бюджетное общеобразовательное учреждение \"Школа №27 с углубленным изучением отдельных предметов\" Нижнекамского муниципального района  Республики Татарстан"]
[8,"Ямалтдинов","Азат","Ниязович",{"$f":"[2]шаблон!$M$796","v":"2008-07-07"},"М","нет",8,8,20.5,50,"Участник","Нет","Сахабиева Алиса Маратовна","Муниципальное бюджетное общеобразовательное учреждение \"Школа №27 с углубленным изучением отдельных предметов\" Нижнекамского муниципального района  Республики Татарстан"]
[9,"Просвиркин","Янис","Антонович",{"$f":"[2]шаблон!$M$786","v":"2008-01-12"},"М","нет",8,8,20,50,"Участник","Нет","Сахабиева Алиса Маратовна","Муниципальное бюджетное общеобразовательное учреждение \"Школа №27 с углубленным изучением отдельных предметов\" Нижнекамского муниципального района  Республики Татарстан"]
[10,"Кадыров","Камиль","Рафаэлевич",{"$f":"[2]шаблон!$M$773","v":"2008-11-20"},"М","нет",8,8,19,50,"Участник","Нет","Сахабиева Алиса Маратовна","Муниципальное бюджетное общеобразовательное учреждение \"Школа №27 с углубленным изучением отдельных предметов\" Нижнекамского муниципального района  Республики Татарстан"]
[11,"Ишманова","Индира","Ильнаровна",{"$f":"[2]шаблон!$M$806","v":"2008-04-01"},"Ж","нет",8,8,15,50,"Участник","Нет","Сахабиева Алиса Маратовна","Муниципальное бюджетное общеобразовательное учреждение \"Школа №27 с углубленным изучением отдельных предметов\" Нижнекамского муниципального района  Республики Татарстан"]
[12,"Князев","Леонид","Сергеевич",{"$f":"[2]шаблон!$M$775","v":"2008-02-12"},"М","нет",8,8,11,50,"Участник","Нет","Сахабиева Алиса Маратовна","Муниципальное бюджетное общеобразовательное учреждение \"Школа №27 с углубленным изучением отдельных предметов\" Нижнекамского муниципального района  Республики Татарстан"]
[13,"Зарипов","Салават ","Марселевич",{"$f":"[2]шаблон!$M$771","v":"2008-01-11"},"М","нет",8,8,6,50,"Участник","Нет","Сахабиева Алиса Маратовна","Муниципальное бюджетное общеобразовательное учреждение \"Школа №27 с углубленным изучением отдельных предметов\" Нижнекамского муниципального района  Республики Татарстан"]
[14,"Рогаткина ","Софья","Игоревна",{"$f":"[2]шаблон!$M$819","v":"2008-04-12"},"Ж","нет",8,8,5.5,50,"Участник","Нет","Сахабиева Алиса Маратовна","Муниципальное бюджетное общеобразовательное учреждение \"Школа №27 с углубленным изучением отдельных предметов\" Нижнекамского муниципального района  Республики Татарстан"]
[15,"Архипова","Виктория","Валерьевна",{"$f":"[2]шаблон!$M$828","v":"2006-12-03"},"Ж","нет",9,9,29.95,50,"Участник","нет ","Сахабиева Алиса Маратовна","Муниципальное бюджетное общеобразовательное учреждение \"Школа №27 с углубленным изучением отдельных предметов\" Нижнекамского муниципального района  Республики Татарстан"]
[16,"Колесникова","Ангелина","Валерьевна","2007-07-11","Ж","нет",9,9,26.2,50,"Участник","нет ","Сахабиева Алиса Маратовна","Муниципальное бюджетное общеобразовательное учреждение \"Школа №27 с углубленным изучением отдельных предметов\" Нижнекамского муниципального района  Республики Татарстан"]
[17,"Почивалова","Кристина","Евгеньевна","2007-10-01","Ж","нет",9,9,23.2,50,"Участник","нет ","Сахабиева Алиса Маратовна","Муниципальное бюджетное общеобразовательное учреждение \"Школа №27 с углубленным изучением отдельных предметов\" Нижнекамского муниципального района  Республики Татарстан"]
[18,"Матросов","Даниил ","Валентинович","2007-08-13","М","нет",9,9,22.35,50,"Участник","нет ","Сахабиева Алиса Маратовна","Муниципальное бюджетное общеобразовательное учреждение \"Школа №27 с углубленным изучением отдельных предметов\" Нижнекамского муниципального района  Республики Татарстан"]
[19,"Злобина","София","Владимировна","2007-04-08","Ж","нет",9,9,21,50,"Участник","нет ","Сахабиева Алиса Маратовна","Муниципальное бюджетное общеобразовательное учреждение \"Школа №27 с углубленным изучением отдельных предметов\" Нижнекамского муниципального района  Республики Татарстан"]
[20,"Салдеева","Арина","Юрьевна","2007-02-15","Ж","нет",9,9,20.25,50,"Участник","нет ","Сахабиева Алиса Маратовна","Муниципальное бюджетное общеобразовательное учреждение \"Школа №27 с углубленным изучением отдельных предметов\" Нижнекамского муниципального района  Республики Татарстан"]
[21,"Пятибратова","Илона"," Романовна","2006-11-12","Ж","нет",9,9,18.25,50,"Участник","нет ","Сахабиева Алиса Маратовна","Муниципальное бюджетное общеобразовательное учреждение \"Школа №27 с углубленным изучением отдельных предметов\" Нижнекамского муниципального района  Республики Татарстан"]
[22,"Шамсутдинова","Арина","Ринатовна","2006-12-21","Ж","нет",9,9,17.5,50,"Участник","нет ","Сахабиева Алиса Маратовна","Муниципальное бюджетное общеобразовательное учреждение \"Школа №27 с углубленным изучением отдельных предметов\" Нижнекамского муниципального района  Республики Татарстан"]
[23,"Шайхиев","Динар ","Шамилевич",{"$f":"[2]шаблон!$M$841","v":"25.12.2006"},"М","нет",9,9,16.25,50,"Участник","нет ","Сахабиева Алиса Маратовна","Муниципальное бюджетное общеобразовательное учреждение \"Школа №27 с углубленным изучением отдельных предметов\" Нижнекамского муниципального района  Республики Татарстан"]
[24,"Сайманова","Елизавета ","Маратовна",{"$f":"[2]шаблон!$M$864","v":"29.08.2007"},"Ж","нет",9,9,14.5,50,"Участник","нет ","Сахабиева Алиса Маратовна","Муниципальное бюджетное общеобразовательное учреждение \"Школа №27 с углубленным изучением отдельных предметов\" Нижнекамского муниципального района  Республики Татарстан"]
[25,"Зарипов","Айрат","Марселевич",{"$f":"[2]шаблон!$M$833","v":"01.02.2008"},"М","нет",9,9,12.5,50,"Участник","нет ","Сахабиева Алиса Маратовна","Муниципальное бюджетное общеобразовательное учреждение \"Школа №27 с углубленным изучением отдельных предметов\" Нижнекамского муниципального района  Республики Татарстан"]
[26,"Яшманов","Евгений","Алексеевич","2007-08-21","М","нет",9,9,6.75,50,"Участник","нет ","Сахабиева Алиса Маратовна","Муниципальное бюджетное общеобразовательное учреждение \"Школа №27 с углубленным изучением отдельных предметов\" Нижнекамского муниципального района  Республики Татарстан"]
[27,{"$f":"'[1]Протокол ШЭ ВОШ по предмету'!B2","v":"Мардамшина"},{"$f":"'[1]Протокол ШЭ ВОШ по предмету'!C2","v":"Лейла"},{"$f":"'[1]Протокол ШЭ ВОШ по предмету'!D2","v":"Ильнуровна"},"2006-12-21",{"$f":"'[1]Протокол ШЭ ВОШ по предмету'!F2","v":"Ж"},{"$f":"'[1]Протокол ШЭ ВОШ по предмету'!G2","v":"нет"},{"$f":"'[1]Протокол ШЭ ВОШ по предмету'!H2","v":9},{"$f":"'[1]Протокол ШЭ ВОШ по предмету'!I2","v":9},{"$f":"'[1]Протокол ШЭ ВОШ по предмету'!J2","v":25.7},{"$f":"'[1]Протокол ШЭ ВОШ по предмету'!K2","v":50},{"$f":"'[1]Протокол ШЭ ВОШ по предмету'!L2","v":"призер"},{"$f":"'[1]Протокол ШЭ ВОШ по предмету'!M2","v":"нет"},{"$f":"'[1]Протокол ШЭ ВОШ по предмету'!$N$2","v":"Мирасова Альфия Миргарифановна"},{"$f":"'[1]Протокол ШЭ ВОШ по предмету'!$O$2","v":"Муниципальное бюджетное общеобразовательное учреждение \"Школа №27 с углубленным изучением отдельных предметов\" Нижнекамского муниципального района  Республики Татарстан"}]
[28,{"$f":"'[1]Протокол ШЭ ВОШ по предмету'!B3","v":"Искакова"},{"$f":"'[1]Протокол ШЭ ВОШ по предмету'!C3","v":"Зарина"},{"$f":"'[1]Протокол ШЭ ВОШ по предмету'!D3","v":"Фанилевна"},"2007-09-05",{"$f":"'[1]Протокол ШЭ ВОШ по предмету'!F3","v":"Ж"},{"$f":"'[1]Протокол ШЭ ВОШ по предмету'!G3","v":"нет"},{"$f":"'[1]Протокол ШЭ ВОШ по предмету'!H3","v":9},{"$f":"'[1]Протокол ШЭ ВОШ по предмету'!I3","v":9},{"$f":"'[1]Протокол ШЭ ВОШ по предмету'!J3","v":21},{"$f":"'[1]Протокол ШЭ ВОШ по предмету'!K3","v":50},{"$f":"'[1]Протокол ШЭ ВОШ по предмету'!L3","v":"участник"},{"$f":"'[1]Протокол ШЭ ВОШ по предмету'!M3","v":"нет"},{"$f":"'[1]Протокол ШЭ ВОШ по предмету'!$N$2","v":"Мирасова Альфия Миргарифановна"},{"$f":"'[1]Протокол ШЭ ВОШ по предмету'!$O$2","v":"Муниципальное бюджетное общеобразовательное учреждение \"Школа №27 с углубленным изучением отдельных предметов\" Нижнекамского муниципального района  Республики Татарстан"}]
[29,{"$f":"'[1]Протокол ШЭ ВОШ по предмету'!B4","v":"Юшкова"},{"$f":"'[1]Протокол ШЭ ВОШ по предмету'!C4","v":"Елизавета"},{"$f":"'[1]Протокол ШЭ ВОШ по предмету'!D4","v":"Дмитриевна"},"2007-10-17",{"$f":"'[1]Протокол ШЭ ВОШ по предмету'!F4","v":"Ж"},{"$f":"'[1]Протокол ШЭ ВОШ по предмету'!G4","v":"нет"},{"$f":"'[1]Протокол ШЭ ВОШ по предмету'!H4","v":9},{"$f":"'[1]Протокол ШЭ ВОШ по предмету'!I4","v":9},{"$f":"'[1]Протокол ШЭ ВОШ по предмету'!J4","v":27},{"$f":"'[1]Протокол ШЭ ВОШ по предмету'!K4","v":50},{"$f":"'[1]Протокол ШЭ ВОШ по предмету'!L4","v":"призер"},{"$f":"'[1]Протокол ШЭ ВОШ по предмету'!M4","v":"нет"},{"$f":"'[1]Протокол ШЭ ВОШ по предмету'!$N$2","v":"Мирасова Альфия Миргарифановна"},{"$f":"'[1]Протокол ШЭ ВОШ по предмету'!$O$2","v":"Муниципальное бюджетное общеобразовательное учреждение \"Школа №27 с углубленным изучением отдельных предметов\" Нижнекамского муниципального района  Республики Татарстан"}]
[30,{"$f":"'[1]Протокол ШЭ ВОШ по предмету'!B5","v":"Козлова "},{"$f":"'[1]Протокол ШЭ ВОШ по предмету'!C5","v":"Полина"},{"$f":"'[1]Протокол ШЭ ВОШ по предмету'!D5","v":"Николаевна"},"2007-01-01",{"$f":"'[1]Протокол ШЭ ВОШ по предмету'!F5","v":"Ж"},{"$f":"'[1]Протокол ШЭ ВОШ по предмету'!G5","v":"нет"},{"$f":"'[1]Протокол ШЭ ВОШ по предмету'!H5","v":9},{"$f":"'[1]Протокол ШЭ ВОШ по предмету'!I5","v":9},{"$f":"'[1]Протокол ШЭ ВОШ по предмету'!J5","v":13},{"$f":"'[1]Протокол ШЭ ВОШ по предмету'!K5","v":50},{"$f":"'[1]Протокол ШЭ ВОШ по предмету'!L5","v":"участник"},{"$f":"'[1]Протокол ШЭ ВОШ по предмету'!M5","v":"нет"},{"$f":"'[1]Протокол ШЭ ВОШ по предмету'!$N$2","v":"Мирасова Альфия Миргарифановна"},{"$f":"'[1]Протокол ШЭ ВОШ по предмету'!$O$2","v":"Муниципальное бюджетное общеобразовательное учреждение \"Школа №27 с углубленным изучением отдельных предметов\" Нижнекамского муниципального района  Республики Татарстан"}]
[31,{"$f":"'[1]Протокол ШЭ ВОШ по предмету'!B6","v":"Синдимирова"},{"$f":"'[1]Протокол ШЭ ВОШ по предмету'!C6","v":"Диана"},{"$f":"'[1]Протокол ШЭ ВОШ по предмету'!D6","v":"Алексеевна"},"2007-07-31",{"$f":"'[1]Протокол ШЭ ВОШ по предмету'!F6","v":"Ж"},{"$f":"'[1]Протокол ШЭ ВОШ по предмету'!G6","v":"нет"},{"$f":"'[1]Протокол ШЭ ВОШ по предмету'!H6","v":9},{"$f":"'[1]Протокол ШЭ ВОШ по предмету'!I6","v":9},{"$f":"'[1]Протокол ШЭ ВОШ по предмету'!J6","v":13.5},{"$f":"'[1]Протокол ШЭ ВОШ по предмету'!K6","v":50},{"$f":"'[1]Протокол ШЭ ВОШ по предмету'!L6","v":"участник"},{"$f":"'[1]Протокол ШЭ ВОШ по предмету'!M6","v":"нет"},{"$f":"'[1]Протокол ШЭ ВОШ по предмету'!$N$2","v":"Мирасова Альфия Миргарифановна"},"Муниципальное бюджетное общеобразовательное учреждение \"Школа №27 с углубленным изучением отдельных предметов\" Нижнекамского муниципального района  Республики Татарстан"]
[32,{"$f":"'[1]Протокол ШЭ ВОШ по предмету'!B7","v":"Хасанова"},{"$f":"'[1]Протокол ШЭ ВОШ по предмету'!C7","v":"Рузиля"},{"$f":"'[1]Протокол ШЭ ВОШ по предмету'!D7","v":"Валерьевна"},"2007-11-09",{"$f":"'[1]Протокол ШЭ ВОШ по предмету'!F7","v":"Ж"},{"$f":"'[1]Протокол ШЭ ВОШ по предмету'!G7","v":"нет"},{"$f":"'[1]Протокол ШЭ ВОШ по предмету'!H7","v":9},{"$f":"'[1]Протокол ШЭ ВОШ по предмету'!I7","v":9},{"$f":"'[1]Протокол ШЭ ВОШ по предмету'!J7","v":17},{"$f":"'[1]Протокол ШЭ ВОШ по предмету'!K7","v":50},{"$f":"'[1]Протокол ШЭ ВОШ по предмету'!L7","v":"участник"},{"$f":"'[1]Протокол ШЭ ВОШ по предмету'!M7","v":"нет"},{"$f":"'[1]Протокол ШЭ ВОШ по предмету'!$N$2","v":"Мирасова Альфия Миргарифановна"},"Муниципальное бюджетное общеобразовательное учреждение \"Школа №27 с углубленным изучением отдельных предметов\" Нижнекамского муниципального района  Республики Татарстан"]
[33,{"$f":"'[1]Протокол ШЭ ВОШ по предмету'!B8","v":"Никитина"},{"$f":"'[1]Протокол ШЭ ВОШ по предмету'!C8","v":"Софья"},{"$f":"'[1]Протокол ШЭ ВОШ по предмету'!D8","v":"Васильевна"},"2006-12-24",{"$f":"'[1]Протокол ШЭ ВОШ по предмету'!F8","v":"Ж"},{"$f":"'[1]Протокол ШЭ ВОШ по предмету'!G8","v":"нет"},{"$f":"'[1]Протокол ШЭ ВОШ по предмету'!H8","v":9},{"$f":"'[1]Протокол ШЭ ВОШ по предмету'!I8","v":9},{"$f":"'[1]Протокол ШЭ ВОШ по предмету'!J8","v":7.3},{"$f":"'[1]Протокол ШЭ ВОШ по предмету'!K8","v":50},{"$f":"'[1]Протокол ШЭ ВОШ по предмету'!L8","v":"участник"},{"$f":"'[1]Протокол ШЭ ВОШ по предмету'!M8","v":"нет"},{"$f":"'[1]Протокол ШЭ ВОШ по предмету'!$N$2","v":"Мирасова Альфия Миргарифановна"},"Муниципальное бюджетное общеобразовательное учреждение \"Школа №27 с углубленным изучением отдельных предметов\" Нижнекамского муниципального района  Республики Татарстан"]
[34,{"$f":"'[1]Протокол ШЭ ВОШ по предмету'!B9","v":"Мирзаянова"},{"$f":"'[1]Протокол ШЭ ВОШ по предмету'!C9","v":"Камилла"},{"$f":"'[1]Протокол ШЭ ВОШ по предмету'!D9","v":"Фаритовна"},"2007-03-12",{"$f":"'[1]Протокол ШЭ ВОШ по предмету'!F9","v":"Ж"},{"$f":"'[1]Протокол ШЭ ВОШ по предмету'!G9","v":"нет"},{"$f":"'[1]Протокол ШЭ ВОШ по предмету'!H9","v":9},{"$f":"'[1]Протокол ШЭ ВОШ по предмету'!I9","v":9},{"$f":"'[1]Протокол ШЭ ВОШ по предмету'!J9","v":"20"},{"$f":"'[1]Протокол ШЭ ВОШ по предмету'!K9","v":50},{"$f":"'[1]Протокол ШЭ ВОШ по предмету'!L9","v":"участник"},{"$f":"'[1]Протокол ШЭ ВОШ по предмету'!M9","v":"нет"},{"$f":"'[1]Протокол ШЭ ВОШ по предмету'!$N$2","v":"Мирасова Альфия Миргарифановна"},"Муниципальное бюджетное общеобразовательное учреждение \"Школа №27 с углубленным изучением отдельных предметов\" Нижнекамского муниципального района  Республики Татарстан"]
[35,{"$f":"'[1]Протокол ШЭ ВОШ по предмету'!B10","v":"Ахметзянова"},{"$f":"'[1]Протокол ШЭ ВОШ по предмету'!C10","v":"Диляра"},{"$f":"'[1]Протокол ШЭ ВОШ по предмету'!D10","v":"Анасовна"},"2007-02-01",{"$f":"'[1]Протокол ШЭ ВОШ по предмету'!F10","v":"Ж"},{"$f":"'[1]Протокол ШЭ ВОШ по предмету'!G10","v":"нет"},{"$f":"'[1]Протокол ШЭ ВОШ по предмету'!H10","v":9},{"$f":"'[1]Протокол ШЭ ВОШ по предмету'!I10","v":9},{"$f":"'[1]Протокол ШЭ ВОШ по предмету'!J10","v":17},{"$f":"'[1]Протокол ШЭ ВОШ по предмету'!K10","v":50},{"$f":"'[1]Протокол ШЭ ВОШ по предмету'!L10","v":"участник"},{"$f":"'[1]Протокол ШЭ ВОШ по предмету'!M10","v":"нет"},{"$f":"'[1]Протокол ШЭ ВОШ по предмету'!$N$2","v":"Мирасова Альфия Миргарифановна"},"Муниципальное бюджетное общеобразовательное учреждение \"Школа №27 с углубленным изучением отдельных предметов\" Нижнекамского муниципального района  Республики Татарстан"]
[36,{"$f":"'[1]Протокол ШЭ ВОШ по предмету'!B11","v":"Валиева"},{"$f":"'[1]Протокол ШЭ ВОШ по предмету'!C11","v":"Камилла"},{"$f":"'[1]Протокол ШЭ ВОШ по предмету'!D11","v":"Марсельевна"},"2007-07-24",{"$f":"'[1]Протокол ШЭ ВОШ по предмету'!F11","v":"Ж"},{"$f":"'[1]Протокол ШЭ ВОШ по предмету'!G11","v":"нет"},{"$f":"'[1]Протокол ШЭ ВОШ по предмету'!H11","v":9},{"$f":"'[1]Протокол ШЭ ВОШ по предмету'!I11","v":9},{"$f":"'[1]Протокол ШЭ ВОШ по предмету'!J11","v":"13.25"},{"$f":"'[1]Протокол ШЭ ВОШ по предмету'!K11","v":50},{"$f":"'[1]Протокол ШЭ ВОШ по предмету'!L11","v":"участник"},{"$f":"'[1]Протокол ШЭ ВОШ по предмету'!M11","v":"нет"},{"$f":"'[1]Протокол ШЭ ВОШ по предмету'!$N$2","v":"Мирасова Альфия Миргарифановна"},"Муниципальное бюджетное общеобразовательное учреждение \"Школа №27 с углубленным изучением отдельных предметов\" Нижнекамского муниципального района  Республики Татарстан"]
[37,{"$f":"'[1]Протокол ШЭ ВОШ по предмету'!B12","v":"Матросова"},{"$f":"'[1]Протокол ШЭ ВОШ по предмету'!C12","v":"Валерия"},{"$f":"'[1]Протокол ШЭ ВОШ по предмету'!D12","v":"Максимовна"},"2007-02-05",{"$f":"'[1]Протокол ШЭ ВОШ по предмету'!F12","v":"Ж"},{"$f":"'[1]Протокол ШЭ ВОШ по предмету'!G12","v":"нет"},{"$f":"'[1]Протокол ШЭ ВОШ по предмету'!H12","v":9},{"$f":"'[1]Протокол ШЭ ВОШ по предмету'!I12","v":9},{"$f":"'[1]Протокол ШЭ ВОШ по предмету'!J12","v":9},{"$f":"'[1]Протокол ШЭ ВОШ по предмету'!K12","v":50},{"$f":"'[1]Протокол ШЭ ВОШ по предмету'!L12","v":"участник"},{"$f":"'[1]Протокол ШЭ ВОШ по предмету'!M12","v":"нет"},{"$f":"'[1]Протокол ШЭ ВОШ по предмету'!$N$2","v":"Мирасова Альфия Миргарифановна"},"Муниципальное бюджетное общеобразовательное учреждение \"Школа №27 с углубленным изучением отдельных предметов\" Нижнекамского муниципального района  Республики Татарстан"]
[38,{"$f":"'[1]Протокол ШЭ ВОШ по предмету'!B13","v":"Миндарова"},{"$f":"'[1]Протокол ШЭ ВОШ по предмету'!C13","v":"Сафи"},{"$f":"'[1]Протокол ШЭ ВОШ по предмету'!D13","v":"Рустемовна"},"2007-04-23",{"$f":"'[1]Протокол ШЭ ВОШ по предмету'!F13","v":"Ж"},{"$f":"'[1]Протокол ШЭ ВОШ по предмету'!G13","v":"нет"},{"$f":"'[1]Протокол ШЭ ВОШ по предмету'!H13","v":9},{"$f":"'[1]Протокол ШЭ ВОШ по предмету'!I13","v":9},{"$f":"'[1]Протокол ШЭ ВОШ по предмету'!J13","v":22},{"$f":"'[1]Протокол ШЭ ВОШ по предмету'!K13","v":50},{"$f":"'[1]Протокол ШЭ ВОШ по предмету'!L13","v":"Участник"},{"$f":"'[1]Протокол ШЭ ВОШ по предмету'!M13","v":"нет"},{"$f":"'[1]Протокол ШЭ ВОШ по предмету'!$N$2","v":"Мирасова Альфия Миргарифановна"},"Муниципальное бюджетное общеобразовательное учреждение \"Школа №27 с углубленным изучением отдельных предметов\" Нижнекамского муниципального района  Республики Татарстан"]
[39,{"$f":"'[1]Протокол ШЭ ВОШ по предмету'!B14","v":"Сибгатуллин "},{"$f":"'[1]Протокол ШЭ ВОШ по предмету'!C14","v":"Инсаф"},{"$f":"'[1]Протокол ШЭ ВОШ по предмету'!D14","v":"Шамилевич"},"2007-10-27",{"$f":"'[1]Протокол ШЭ ВОШ по предмету'!F14","v":"М"},{"$f":"'[1]Протокол ШЭ ВОШ по предмету'!G14","v":"нет"},{"$f":"'[1]Протокол ШЭ ВОШ по предмету'!H14","v":9},{"$f":"'[1]Протокол ШЭ ВОШ по предмету'!I14","v":9},{"$f":"'[1]Протокол ШЭ ВОШ по предмету'!J14","v":21},{"$f":"'[1]Протокол ШЭ ВОШ по предмету'!K14","v":50},{"$f":"'[1]Протокол ШЭ ВОШ по предмету'!L14","v":"участник"},{"$f":"'[1]Протокол ШЭ ВОШ по предмету'!M14","v":"нет"},{"$f":"'[1]Протокол ШЭ ВОШ по предмету'!$N$2","v":"Мирасова Альфия Миргарифановна"},"Муниципальное бюджетное общеобразовательное учреждение \"Школа №27 с углубленным изучением отдельных предметов\" Нижнекамского муниципального района  Республики Татарстан"]
[40,{"$f":"'[1]Протокол ШЭ ВОШ по предмету'!B15","v":"Кутергина"},{"$f":"'[1]Протокол ШЭ ВОШ по предмету'!C15","v":"Анна"},{"$f":"'[1]Протокол ШЭ ВОШ по предмету'!D15","v":"Андреевна"},"30.05..2006",{"$f":"'[1]Протокол ШЭ ВОШ по предмету'!F15","v":"Ж"},{"$f":"'[1]Протокол ШЭ ВОШ по предмету'!G15","v":"нет"},{"$f":"'[1]Протокол ШЭ ВОШ по предмету'!H15","v":10},{"$f":"'[1]Протокол ШЭ ВОШ по предмету'!I15","v":10},{"$f":"'[1]Протокол ШЭ ВОШ по предмету'!J15","v":11},{"$f":"'[1]Протокол ШЭ ВОШ по предмету'!K15","v":50},{"$f":"'[1]Протокол ШЭ ВОШ по предмету'!L15","v":"участник"},{"$f":"'[1]Протокол ШЭ ВОШ по предмету'!M15","v":"нет"},{"$f":"'[1]Протокол ШЭ ВОШ по предмету'!$N$2","v":"Мирасова Альфия Миргарифановна"},"Муниципальное бюджетное общеобразовательное учреждение \"Школа №27 с углубленным изучением отдельных предметов\" Нижнекамского муниципального района  Республики Татарстан"]
[41,{"$f":"'[1]Протокол ШЭ ВОШ по предмету'!B16","v":"Бузирова"},{"$f":"'[1]Протокол ШЭ ВОШ по предмету'!C16","v":"Элина"},{"$f":"'[1]Протокол ШЭ ВОШ по предмету'!D16","v":"Анатольевна"},"2005-11-11",{"$f":"'[1]Протокол ШЭ ВОШ по предмету'!F16","v":"Ж"},{"$f":"'[1]Протокол ШЭ ВОШ по предмету'!G16","v":"нет"},{"$f":"'[1]Протокол ШЭ ВОШ по предмету'!H16","v":10},{"$f":"'[1]Протокол ШЭ ВОШ по предмету'!I16","v":10},{"$f":"'[1]Протокол ШЭ ВОШ по предмету'!J16","v":16},{"$f":"'[1]Протокол ШЭ ВОШ по предмету'!K16","v":50},{"$f":"'[1]Протокол ШЭ ВОШ по предмету'!L16","v":"участник"},{"$f":"'[1]Протокол ШЭ ВОШ по предмету'!M16","v":"нет"},{"$f":"'[1]Протокол ШЭ ВОШ по предмету'!$N$2","v":"Мирасова Альфия Миргарифановна"},"Муниципальное бюджетное общеобразовательное учреждение \"Школа №27 с углубленным изучением отдельных предметов\" Нижнекамского муниципального района  Республики Татарстан"]
[42,{"$f":"'[1]Протокол ШЭ ВОШ по предмету'!B17","v":"Биктимиров"},{"$f":"'[1]Протокол ШЭ ВОШ по предмету'!C17","v":"Амир"},{"$f":"'[1]Протокол ШЭ ВОШ по предмету'!D17","v":"Альбертович"},"2006-04-10",{"$f":"'[1]Протокол ШЭ ВОШ по предмету'!F17","v":"М"},{"$f":"'[1]Протокол ШЭ ВОШ по предмету'!G17","v":"нет"},{"$f":"'[1]Протокол ШЭ ВОШ по предмету'!H17","v":10},{"$f":"'[1]Протокол ШЭ ВОШ по предмету'!I17","v":10},{"$f":"'[1]Протокол ШЭ ВОШ по предмету'!J17","v":27.7},{"$f":"'[1]Протокол ШЭ ВОШ по предмету'!K17","v":50},{"$f":"'[1]Протокол ШЭ ВОШ по предмету'!L17","v":"призер"},{"$f":"'[1]Протокол ШЭ ВОШ по предмету'!M17","v":"нет"},{"$f":"'[1]Протокол ШЭ ВОШ по предмету'!$N$2","v":"Мирасова Альфия Миргарифановна"},"Муниципальное бюджетное общеобразовательное учреждение \"Школа №27 с углубленным изучением отдельных предметов\" Нижнекамского муниципального района  Республики Татарстан"]
[43,{"$f":"'[1]Протокол ШЭ ВОШ по предмету'!B18","v":"Ермолаева"},{"$f":"'[1]Протокол ШЭ ВОШ по предмету'!C18","v":"Мария"},{"$f":"'[1]Протокол ШЭ ВОШ по предмету'!D18","v":"Сергеевна"},"2006-05-12",{"$f":"'[1]Протокол ШЭ ВОШ по предмету'!F18","v":"Ж"},{"$f":"'[1]Протокол ШЭ ВОШ по предмету'!G18","v":"нет"},{"$f":"'[1]Протокол ШЭ ВОШ по предмету'!H18","v":10},{"$f":"'[1]Протокол ШЭ ВОШ по предмету'!I18","v":10},{"$f":"'[1]Протокол ШЭ ВОШ по предмету'!J18","v":16},{"$f":"'[1]Протокол ШЭ ВОШ по предмету'!K18","v":50},{"$f":"'[1]Протокол ШЭ ВОШ по предмету'!L18","v":"участник"},{"$f":"'[1]Протокол ШЭ ВОШ по предмету'!M18","v":"нет"},{"$f":"'[1]Протокол ШЭ ВОШ по предмету'!$N$2","v":"Мирасова Альфия Миргарифановна"},"Муниципальное бюджетное общеобразовательное учреждение \"Школа №27 с углубленным изучением отдельных предметов\" Нижнекамского муниципального района  Республики Татарстан"]
[44,{"$f":"'[1]Протокол ШЭ ВОШ по предмету'!B19","v":"Юнусова"},{"$f":"'[1]Протокол ШЭ ВОШ по предмету'!C19","v":"Диляра"},{"$f":"'[1]Протокол ШЭ ВОШ по предмету'!D19","v":"Ленаровна"},"2006-05-16",{"$f":"'[1]Протокол ШЭ ВОШ по предмету'!F19","v":"Ж"},{"$f":"'[1]Протокол ШЭ ВОШ по предмету'!G19","v":"нет"},{"$f":"'[1]Протокол ШЭ ВОШ по предмету'!H19","v":10},{"$f":"'[1]Протокол ШЭ ВОШ по предмету'!I19","v":10},{"$f":"'[1]Протокол ШЭ ВОШ по предмету'!J19","v":16},{"$f":"'[1]Протокол ШЭ ВОШ по предмету'!K19","v":50},{"$f":"'[1]Протокол ШЭ ВОШ по предмету'!L19","v":"частник"},{"$f":"'[1]Протокол ШЭ ВОШ по предмету'!M19","v":"нет"},{"$f":"'[1]Протокол ШЭ ВОШ по предмету'!$N$2","v":"Мирасова Альфия Миргарифановна"},"Муниципальное бюджетное общеобразовательное учреждение \"Школа №27 с углубленным изучением отдельных предметов\" Нижнекамского муниципального района  Республики Татарстан"]
[45,{"$f":"'[1]Протокол ШЭ ВОШ по предмету'!B20","v":"Галлямова"},{"$f":"'[1]Протокол ШЭ ВОШ по предмету'!C20","v":"Диана"},{"$f":"'[1]Протокол ШЭ ВОШ по предмету'!D20","v":"Рамилевна"},"2006-02-02",{"$f":"'[1]Протокол ШЭ ВОШ по предмету'!F20","v":"Ж"},{"$f":"'[1]Протокол ШЭ ВОШ по предмету'!G20","v":"нет"},{"$f":"'[1]Протокол ШЭ ВОШ по предмету'!H20","v":10},{"$f":"'[1]Протокол ШЭ ВОШ по предмету'!I20","v":10},{"$f":"'[1]Протокол ШЭ ВОШ по предмету'!J20","v":13.5},{"$f":"'[1]Протокол ШЭ ВОШ по предмету'!K20","v":50},{"$f":"'[1]Протокол ШЭ ВОШ по предмету'!L20","v":"участник"},{"$f":"'[1]Протокол ШЭ ВОШ по предмету'!M20","v":"нет"},{"$f":"'[1]Протокол ШЭ ВОШ по предмету'!$N$2","v":"Мирасова Альфия Миргарифановна"},"Муниципальное бюджетное общеобразовательное учреждение \"Школа №27 с углубленным изучением отдельных предметов\" Нижнекамского муниципального района  Республики Татарстан"]
[46,{"$f":"'[1]Протокол ШЭ ВОШ по предмету'!B21","v":"Марданова"},{"$f":"'[1]Протокол ШЭ ВОШ по предмету'!C21","v":"Динара"},{"$f":"'[1]Протокол ШЭ ВОШ по предмету'!D21","v":"Руслановна"},"2007-02-05",{"$f":"'[1]Протокол ШЭ ВОШ по предмету'!F21","v":"Ж"},{"$f":"'[1]Протокол ШЭ ВОШ по предмету'!G21","v":"нет"},{"$f":"'[1]Протокол ШЭ ВОШ по предмету'!H21","v":10},{"$f":"'[1]Протокол ШЭ ВОШ по предмету'!I21","v":10},{"$f":"'[1]Протокол ШЭ ВОШ по предмету'!J21","v":20.3},{"$f":"'[1]Протокол ШЭ ВОШ по предмету'!K21","v":50},{"$f":"'[1]Протокол ШЭ ВОШ по предмету'!L21","v":"участник"},{"$f":"'[1]Протокол ШЭ ВОШ по предмету'!M21","v":"нет"},{"$f":"'[1]Протокол ШЭ ВОШ по предмету'!$N$2","v":"Мирасова Альфия Миргарифановна"},"Муниципальное бюджетное общеобразовательное учреждение \"Школа №27 с углубленным изучением отдельных предметов\" Нижнекамского муниципального района  Республики Татарстан"]
[47,{"$f":"'[1]Протокол ШЭ ВОШ по предмету'!B22","v":"Микрюков"},{"$f":"'[1]Протокол ШЭ ВОШ по предмету'!C22","v":"Никита"},{"$f":"'[1]Протокол ШЭ ВОШ по предмету'!D22","v":"Дмитриевич"},"2005-12-08",{"$f":"'[1]Протокол ШЭ ВОШ по предмету'!F22","v":"М"},{"$f":"'[1]Протокол ШЭ ВОШ по предмету'!G22","v":"нет"},{"$f":"'[1]Протокол ШЭ ВОШ по предмету'!H22","v":10},{"$f":"'[1]Протокол ШЭ ВОШ по предмету'!I22","v":10},{"$f":"'[1]Протокол ШЭ ВОШ по предмету'!J22","v":11.5},{"$f":"'[1]Протокол ШЭ ВОШ по предмету'!K22","v":50},{"$f":"'[1]Протокол ШЭ ВОШ по предмету'!L22","v":"участник"},{"$f":"'[1]Протокол ШЭ ВОШ по предмету'!M22","v":"нет"},{"$f":"'[1]Протокол ШЭ ВОШ по предмету'!$N$2","v":"Мирасова Альфия Миргарифановна"},"Муниципальное бюджетное общеобразовательное учреждение \"Школа №27 с углубленным изучением отдельных предметов\" Нижнекамского муниципального района  Республики Татарстан"]
[48,{"$f":"'[1]Протокол ШЭ ВОШ по предмету'!B23","v":"Козлов "},{"$f":"'[1]Протокол ШЭ ВОШ по предмету'!C23","v":"Ярослав"},{"$f":"'[1]Протокол ШЭ ВОШ по предмету'!D23","v":"Николаевич"},"2006-03-21",{"$f":"'[1]Протокол ШЭ ВОШ по предмету'!F23","v":"М"},{"$f":"'[1]Протокол ШЭ ВОШ по предмету'!G23","v":"нет"},{"$f":"'[1]Протокол ШЭ ВОШ по предмету'!H23","v":10},{"$f":"'[1]Протокол ШЭ ВОШ по предмету'!I23","v":10},{"$f":"'[1]Протокол ШЭ ВОШ по предмету'!J23","v":27},{"$f":"'[1]Протокол ШЭ ВОШ по предмету'!K23","v":50},{"$f":"'[1]Протокол ШЭ ВОШ по предмету'!L23","v":"призер"},{"$f":"'[1]Протокол ШЭ ВОШ по предмету'!M23","v":"нет"},{"$f":"'[1]Протокол ШЭ ВОШ по предмету'!$N$2","v":"Мирасова Альфия Миргарифановна"},"Муниципальное бюджетное общеобразовательное учреждение \"Школа №27 с углубленным изучением отдельных предметов\" Нижнекамского муниципального района  Республики Татарстан"]
[49,{"$f":"'[1]Протокол ШЭ ВОШ по предмету'!B24","v":"Петрова"},{"$f":"'[1]Протокол ШЭ ВОШ по предмету'!C24","v":"Мария"},{"$f":"'[1]Протокол ШЭ ВОШ по предмету'!D24","v":"Вадимовна"},"2006-10-31",{"$f":"'[1]Протокол ШЭ ВОШ по предмету'!F24","v":"Ж"},{"$f":"'[1]Протокол ШЭ ВОШ по предмету'!G24","v":"нет"},{"$f":"'[1]Протокол ШЭ ВОШ по предмету'!H24","v":10},{"$f":"'[1]Протокол ШЭ ВОШ по предмету'!I24","v":10},{"$f":"'[1]Протокол ШЭ ВОШ по предмету'!J24","v":19},{"$f":"'[1]Протокол ШЭ ВОШ по предмету'!K24","v":50},{"$f":"'[1]Протокол ШЭ ВОШ по предмету'!L24","v":"участник"},{"$f":"'[1]Протокол ШЭ ВОШ по предмету'!M24","v":"нет"},{"$f":"'[1]Протокол ШЭ ВОШ по предмету'!$N$2","v":"Мирасова Альфия Миргарифановна"},"Муниципальное бюджетное общеобразовательное учреждение \"Школа №27 с углубленным изучением отдельных предметов\" Нижнекамского муниципального района  Республики Татарстан"]
[50,{"$f":"'[1]Протокол ШЭ ВОШ по предмету'!B25","v":"Сагитова"},{"$f":"'[1]Протокол ШЭ ВОШ по предмету'!C25","v":"Александра"},{"$f":"'[1]Протокол ШЭ ВОШ по предмету'!D25","v":" Тимуровна"},"2006-01-05",{"$f":"'[1]Протокол ШЭ ВОШ по предмету'!F25","v":"Ж"},{"$f":"'[1]Протокол ШЭ ВОШ по предмету'!G25","v":"нет"},{"$f":"'[1]Протокол ШЭ ВОШ по предмету'!H25","v":10},{"$f":"'[1]Протокол ШЭ ВОШ по предмету'!I25","v":10},{"$f":"'[1]Протокол ШЭ ВОШ по предмету'!J25","v":18.5},{"$f":"'[1]Протокол ШЭ ВОШ по предмету'!K25","v":50},{"$f":"'[1]Протокол ШЭ ВОШ по предмету'!L25","v":"участник"},{"$f":"'[1]Протокол ШЭ ВОШ по предмету'!M25","v":"нет"},{"$f":"'[1]Протокол ШЭ ВОШ по предмету'!$N$2","v":"Мирасова Альфия Миргарифановна"},"Муниципальное бюджетное общеобразовательное учреждение \"Школа №27 с углубленным изучением отдельных предметов\" Нижнекамского муниципального района  Республики Татарстан"]
[51,{"$f":"'[1]Протокол ШЭ ВОШ по предмету'!B26","v":"Хафизова"},{"$f":"'[1]Протокол ШЭ ВОШ по предмету'!C26","v":"Аделя"},{"$f":"'[1]Протокол ШЭ ВОШ по предмету'!D26","v":"Робертовна"},"2006-02-10",{"$f":"'[1]Протокол ШЭ ВОШ по предмету'!F26","v":"Ж"},{"$f":"'[1]Протокол ШЭ ВОШ по предмету'!G26","v":"нет"},{"$f":"'[1]Протокол ШЭ ВОШ по предмету'!H26","v":10},{"$f":"'[1]Протокол ШЭ ВОШ по предмету'!I26","v":10},{"$f":"'[1]Протокол ШЭ ВОШ по предмету'!J26","v":18},{"$f":"'[1]Протокол ШЭ ВОШ по предмету'!K26","v":50},{"$f":"'[1]Протокол ШЭ ВОШ по предмету'!L26","v":"участник"},{"$f":"'[1]Протокол ШЭ ВОШ по предмету'!M26","v":"нет"},{"$f":"'[1]Протокол ШЭ ВОШ по предмету'!$N$2","v":"Мирасова Альфия Миргарифановна"},"Муниципальное бюджетное общеобразовательное учреждение \"Школа №27 с углубленным изучением отдельных предметов\" Нижнекамского муниципального района  Республики Татарстан"]
[52,{"$f":"'[1]Протокол ШЭ ВОШ по предмету'!B27","v":"Гиниатуллина"},{"$f":"'[1]Протокол ШЭ ВОШ по предмету'!C27","v":"Айсылу"},{"$f":"'[1]Протокол ШЭ ВОШ по предмету'!D27","v":"Рамилевна"},"2006-10-04",{"$f":"'[1]Протокол ШЭ ВОШ по предмету'!F27","v":"Ж"},{"$f":"'[1]Протокол ШЭ ВОШ по предмету'!G27","v":"нет"},{"$f":"'[1]Протокол ШЭ ВОШ по предмету'!H27","v":10},{"$f":"'[1]Протокол ШЭ ВОШ по предмету'!I27","v":10},{"$f":"'[1]Протокол ШЭ ВОШ по предмету'!J27","v":18.5},{"$f":"'[1]Протокол ШЭ ВОШ по предмету'!K27","v":50},{"$f":"'[1]Протокол ШЭ ВОШ по предмету'!L27","v":"участник"},{"$f":"'[1]Протокол ШЭ ВОШ по предмету'!M27","v":"нет"},{"$f":"'[1]Протокол ШЭ ВОШ по предмету'!$N$2","v":"Мирасова Альфия Миргарифановна"},"Муниципальное бюджетное общеобразовательное учреждение \"Школа №27 с углубленным изучением отдельных предметов\" Нижнекамского муниципального района  Республики Татарстан"]
[53,{"$f":"'[1]Протокол ШЭ ВОШ по предмету'!B28","v":"Хусаенов"},{"$f":"'[1]Протокол ШЭ ВОШ по предмету'!C28","v":"Данис"},{"$f":"'[1]Протокол ШЭ ВОШ по предмету'!D28","v":" Ильнарович"},"2006-12-29",{"$f":"'[1]Протокол ШЭ ВОШ по предмету'!F28","v":"М"},{"$f":"'[1]Протокол ШЭ ВОШ по предмету'!G28","v":"нет"},{"$f":"'[1]Протокол ШЭ ВОШ по предмету'!H28","v":10},{"$f":"'[1]Протокол ШЭ ВОШ по предмету'!I28","v":10},{"$f":"'[1]Протокол ШЭ ВОШ по предмету'!J28","v":16},{"$f":"'[1]Протокол ШЭ ВОШ по предмету'!K28","v":50},{"$f":"'[1]Протокол ШЭ ВОШ по предмету'!L28","v":"участник"},{"$f":"'[1]Протокол ШЭ ВОШ по предмету'!M28","v":"нет"},{"$f":"'[1]Протокол ШЭ ВОШ по предмету'!$N$2","v":"Мирасова Альфия Миргарифановна"},"Муниципальное бюджетное общеобразовательное учреждение \"Школа №27 с углубленным изучением отдельных предметов\" Нижнекамского муниципального района  Республики Татарстан"]
[54,{"$f":"'[1]Протокол ШЭ ВОШ по предмету'!B29","v":"Юдина"},{"$f":"'[1]Протокол ШЭ ВОШ по предмету'!C29","v":"Таисия"},{"$f":"'[1]Протокол ШЭ ВОШ по предмету'!D29","v":"Олеговна"},"2006-08-29",{"$f":"'[1]Протокол ШЭ ВОШ по предмету'!F29","v":"Ж"},{"$f":"'[1]Протокол ШЭ ВОШ по предмету'!G29","v":"нет"},{"$f":"'[1]Протокол ШЭ ВОШ по предмету'!H29","v":10},{"$f":"'[1]Протокол ШЭ ВОШ по предмету'!I29","v":10},{"$f":"'[1]Протокол ШЭ ВОШ по предмету'!J29","v":10},{"$f":"'[1]Протокол ШЭ ВОШ по предмету'!K29","v":50},{"$f":"'[1]Протокол ШЭ ВОШ по предмету'!L29","v":"участник"},{"$f":"'[1]Протокол ШЭ ВОШ по предмету'!M29","v":"нет"},{"$f":"'[1]Протокол ШЭ ВОШ по предмету'!$N$2","v":"Мирасова Альфия Миргарифановна"},"Муниципальное бюджетное общеобразовательное учреждение \"Школа №27 с углубленным изучением отдельных предметов\" Нижнекамского муниципального района  Республики Татарстан"]
[55,{"$f":"'[1]Протокол ШЭ ВОШ по предмету'!B30","v":"Филиппова "},{"$f":"'[1]Протокол ШЭ ВОШ по предмету'!C30","v":"Сабина"},{"$f":"'[1]Протокол ШЭ ВОШ по предмету'!D30","v":"Александровна"},"2006-08-28",{"$f":"'[1]Протокол ШЭ ВОШ по предмету'!F30","v":"Ж"},{"$f":"'[1]Протокол ШЭ ВОШ по предмету'!G30","v":"нет"},{"$f":"'[1]Протокол ШЭ ВОШ по предмету'!H30","v":10},{"$f":"'[1]Протокол ШЭ ВОШ по предмету'!I30","v":10},{"$f":"'[1]Протокол ШЭ ВОШ по предмету'!J30","v":16},{"$f":"'[1]Протокол ШЭ ВОШ по предмету'!K30","v":50},{"$f":"'[1]Протокол ШЭ ВОШ по предмету'!L30","v":"участник"},{"$f":"'[1]Протокол ШЭ ВОШ по предмету'!M30","v":"нет"},{"$f":"'[1]Протокол ШЭ ВОШ по предмету'!$N$2","v":"Мирасова Альфия Миргарифановна"},"Муниципальное бюджетное общеобразовательное учреждение \"Школа №27 с углубленным изучением отдельных предметов\" Нижнекамского муниципального района  Республики Татарстан"]
[56,{"$f":"'[1]Протокол ШЭ ВОШ по предмету'!B31","v":"Лазарева"},{"$f":"'[1]Протокол ШЭ ВОШ по предмету'!C31","v":"Кристина"},{"$f":"'[1]Протокол ШЭ ВОШ по предмету'!D31","v":"Валерьевна"},"2006-07-28",{"$f":"'[1]Протокол ШЭ ВОШ по предмету'!F31","v":"Ж"},{"$f":"'[1]Протокол ШЭ ВОШ по предмету'!G31","v":"нет"},{"$f":"'[1]Протокол ШЭ ВОШ по предмету'!H31","v":10},{"$f":"'[1]Протокол ШЭ ВОШ по предмету'!I31","v":10},{"$f":"'[1]Протокол ШЭ ВОШ по предмету'!J31","v":18.5},{"$f":"'[1]Протокол ШЭ ВОШ по предмету'!K31","v":50},{"$f":"'[1]Протокол ШЭ ВОШ по предмету'!L31","v":"участник"},{"$f":"'[1]Протокол ШЭ ВОШ по предмету'!M31","v":"нет"},{"$f":"'[1]Протокол ШЭ ВОШ по предмету'!$N$2","v":"Мирасова Альфия Миргарифановна"},"Муниципальное бюджетное общеобразовательное учреждение \"Школа №27 с углубленным изучением отдельных предметов\" Нижнекамского муниципального района  Республики Татарстан"]
[57,{"$f":"'[1]Протокол ШЭ ВОШ по предмету'!B32","v":"Гиниятуллина"},{"$f":"'[1]Протокол ШЭ ВОШ по предмету'!C32","v":"Алина"},{"$f":"'[1]Протокол ШЭ ВОШ по предмету'!D32","v":"Ренатовна"},"2006-05-06",{"$f":"'[1]Протокол ШЭ ВОШ по предмету'!F32","v":"Ж"},{"$f":"'[1]Протокол ШЭ ВОШ по предмету'!G32","v":"нет"},{"$f":"'[1]Протокол ШЭ ВОШ по предмету'!H32","v":10},{"$f":"'[1]Протокол ШЭ ВОШ по предмету'!I32","v":10},{"$f":"'[1]Протокол ШЭ ВОШ по предмету'!J32","v":14.5},{"$f":"'[1]Протокол ШЭ ВОШ по предмету'!K32","v":50},{"$f":"'[1]Протокол ШЭ ВОШ по предмету'!L32","v":"участник"},{"$f":"'[1]Протокол ШЭ ВОШ по предмету'!M32","v":"нет"},{"$f":"'[1]Протокол ШЭ ВОШ по предмету'!$N$2","v":"Мирасова Альфия Миргарифановна"},"Муниципальное бюджетное общеобразовательное учреждение \"Школа №27 с углубленным изучением отдельных предметов\" Нижнекамского муниципального района  Республики Татарстан"]
[58,{"$f":"'[1]Протокол ШЭ ВОШ по предмету'!B33","v":"Фахрутдинова"},{"$f":"'[1]Протокол ШЭ ВОШ по предмету'!C33","v":"Адиля"},{"$f":"'[1]Протокол ШЭ ВОШ по предмету'!D33","v":"Айратовна"},"2005-07-24",{"$f":"'[1]Протокол ШЭ ВОШ по предмету'!F33","v":"ж"},{"$f":"'[1]Протокол ШЭ ВОШ по предмету'!G33","v":"нет"},{"$f":"'[1]Протокол ШЭ ВОШ по предмету'!H33","v":11},{"$f":"'[1]Протокол ШЭ ВОШ по предмету'!I33","v":11},{"$f":"'[1]Протокол ШЭ ВОШ по предмету'!J33","v":"29.75"},{"$f":"'[1]Протокол ШЭ ВОШ по предмету'!K33","v":50},{"$f":"'[1]Протокол ШЭ ВОШ по предмету'!L33","v":"призер"},{"$f":"'[1]Протокол ШЭ ВОШ по предмету'!M33","v":"нет"},{"$f":"'[1]Протокол ШЭ ВОШ по предмету'!$N$2","v":"Мирасова Альфия Миргарифановна"},"Муниципальное бюджетное общеобразовательное учреждение \"Школа №27 с углубленным изучением отдельных предметов\" Нижнекамского муниципального района  Республики Татарстан"]
[59,{"$f":"'[1]Протокол ШЭ ВОШ по предмету'!B34","v":"Евстафьев"},{"$f":"'[1]Протокол ШЭ ВОШ по предмету'!C34","v":"Тимур"},{"$f":"'[1]Протокол ШЭ ВОШ по предмету'!D34","v":"Артурович"},"2005-12-21","м",{"$f":"'[1]Протокол ШЭ ВОШ по предмету'!G34","v":"нет"},{"$f":"'[1]Протокол ШЭ ВОШ по предмету'!H34","v":11},{"$f":"'[1]Протокол ШЭ ВОШ по предмету'!I34","v":11},{"$f":"'[1]Протокол ШЭ ВОШ по предмету'!J34","v":"27.7"},{"$f":"'[1]Протокол ШЭ ВОШ по предмету'!K34","v":50},{"$f":"'[1]Протокол ШЭ ВОШ по предмету'!L34","v":"призер"},{"$f":"'[1]Протокол ШЭ ВОШ по предмету'!M34","v":"нет"},{"$f":"'[1]Протокол ШЭ ВОШ по предмету'!$N$2","v":"Мирасова Альфия Миргарифановна"},"Муниципальное бюджетное общеобразовательное учреждение \"Школа №27 с углубленным изучением отдельных предметов\" Нижнекамского муниципального района  Республики Татарстан"]
[60,{"$f":"'[1]Протокол ШЭ ВОШ по предмету'!B35","v":"Филиппова "},{"$f":"'[1]Протокол ШЭ ВОШ по предмету'!C35","v":"Анастасия "},{"$f":"'[1]Протокол ШЭ ВОШ по предмету'!D35","v":" Алексеевна"},"30.12.2005.",{"$f":"'[1]Протокол ШЭ ВОШ по предмету'!F35","v":"ж"},{"$f":"'[1]Протокол ШЭ ВОШ по предмету'!G35","v":"нет"},{"$f":"'[1]Протокол ШЭ ВОШ по предмету'!H35","v":11},{"$f":"'[1]Протокол ШЭ ВОШ по предмету'!I35","v":11},{"$f":"'[1]Протокол ШЭ ВОШ по предмету'!J35","v":27},{"$f":"'[1]Протокол ШЭ ВОШ по предмету'!K35","v":50},{"$f":"'[1]Протокол ШЭ ВОШ по предмету'!L35","v":"участник"},{"$f":"'[1]Протокол ШЭ ВОШ по предмету'!M35","v":"нет"},{"$f":"'[1]Протокол ШЭ ВОШ по предмету'!$N$2","v":"Мирасова Альфия Миргарифановна"},"Муниципальное бюджетное общеобразовательное учреждение \"Школа №27 с углубленным изучением отдельных предметов\" Нижнекамского муниципального района  Республики Татарстан"]
[61,{"$f":"'[1]Протокол ШЭ ВОШ по предмету'!B36","v":"Фаттахова"},{"$f":"'[1]Протокол ШЭ ВОШ по предмету'!C36","v":"Азалия"},{"$f":"'[1]Протокол ШЭ ВОШ по предмету'!D36","v":"Ильнаровна"},"2005-02-28",{"$f":"'[1]Протокол ШЭ ВОШ по предмету'!F36","v":"ж"},{"$f":"'[1]Протокол ШЭ ВОШ по предмету'!G36","v":"нет"},{"$f":"'[1]Протокол ШЭ ВОШ по предмету'!H36","v":11},{"$f":"'[1]Протокол ШЭ ВОШ по предмету'!I36","v":11},{"$f":"'[1]Протокол ШЭ ВОШ по предмету'!J36","v":23},{"$f":"'[1]Протокол ШЭ ВОШ по предмету'!K36","v":50},{"$f":"'[1]Протокол ШЭ ВОШ по предмету'!L36","v":"участник"},{"$f":"'[1]Протокол ШЭ ВОШ по предмету'!M36","v":"нет"},{"$f":"'[1]Протокол ШЭ ВОШ по предмету'!$N$2","v":"Мирасова Альфия Миргарифановна"},"Муниципальное бюджетное общеобразовательное учреждение \"Школа №27 с углубленным изучением отдельных предметов\" Нижнекамского муниципального района  Республики Татарстан"]
[62,{"$f":"'[1]Протокол ШЭ ВОШ по предмету'!B37","v":"Фатахутдинов"},{"$f":"'[1]Протокол ШЭ ВОШ по предмету'!C37","v":"Амир"},{"$f":"'[1]Протокол ШЭ ВОШ по предмету'!D37","v":"Тимурович"},"2005-09-17",{"$f":"'[1]Протокол ШЭ ВОШ по предмету'!F37","v":"м"},{"$f":"'[1]Протокол ШЭ ВОШ по предмету'!G37","v":"нет"},{"$f":"'[1]Протокол ШЭ ВОШ по предмету'!H37","v":11},{"$f":"'[1]Протокол ШЭ ВОШ по предмету'!I37","v":1},{"$f":"'[1]Протокол ШЭ ВОШ по предмету'!J37","v":"21"},{"$f":"'[1]Протокол ШЭ ВОШ по предмету'!K37","v":50},{"$f":"'[1]Протокол ШЭ ВОШ по предмету'!L37","v":"участник"},{"$f":"'[1]Протокол ШЭ ВОШ по предмету'!M37","v":"нет"},{"$f":"'[1]Протокол ШЭ ВОШ по предмету'!$N$2","v":"Мирасова Альфия Миргарифановна"},"Муниципальное бюджетное общеобразовательное учреждение \"Школа №27 с углубленным изучением отдельных предметов\" Нижнекамского муниципального района  Республики Татарстан"]
[63,{"$f":"'[1]Протокол ШЭ ВОШ по предмету'!B38","v":"Миннулина"},{"$f":"'[1]Протокол ШЭ ВОШ по предмету'!C38","v":"Лия  "},{"$f":"'[1]Протокол ШЭ ВОШ по предмету'!D38","v":"Айратовна"},"13.0.2005",{"$f":"'[1]Протокол ШЭ ВОШ по предмету'!F38","v":"ж"},{"$f":"'[1]Протокол ШЭ ВОШ по предмету'!G38","v":"нет"},{"$f":"'[1]Протокол ШЭ ВОШ по предмету'!H38","v":11},{"$f":"'[1]Протокол ШЭ ВОШ по предмету'!I38","v":11},{"$f":"'[1]Протокол ШЭ ВОШ по предмету'!J38","v":20},{"$f":"'[1]Протокол ШЭ ВОШ по предмету'!K38","v":50},{"$f":"'[1]Протокол ШЭ ВОШ по предмету'!L38","v":"участник"},{"$f":"'[1]Протокол ШЭ ВОШ по предмету'!M38","v":"нет"},{"$f":"'[1]Протокол ШЭ ВОШ по предмету'!$N$2","v":"Мирасова Альфия Миргарифановна"},"Муниципальное бюджетное общеобразовательное учреждение \"Школа №27 с углубленным изучением отдельных предметов\" Нижнекамского муниципального района  Республики Татарстан"]
[64,{"$f":"'[1]Протокол ШЭ ВОШ по предмету'!B39","v":"Нигматзанова"},{"$f":"'[1]Протокол ШЭ ВОШ по предмету'!C39","v":"Камила"},{"$f":"'[1]Протокол ШЭ ВОШ по предмету'!D39","v":"Сириновна"},"2005-04-18",{"$f":"'[1]Протокол ШЭ ВОШ по предмету'!F39","v":"ж"},{"$f":"'[1]Протокол ШЭ ВОШ по предмету'!G39","v":"нет"},{"$f":"'[1]Протокол ШЭ ВОШ по предмету'!H39","v":11},{"$f":"'[1]Протокол ШЭ ВОШ по предмету'!I39","v":11},{"$f":"'[1]Протокол ШЭ ВОШ по предмету'!J39","v":16},{"$f":"'[1]Протокол ШЭ ВОШ по предмету'!K39","v":50},{"$f":"'[1]Протокол ШЭ ВОШ по предмету'!L39","v":"участник"},{"$f":"'[1]Протокол ШЭ ВОШ по предмету'!M39","v":"нет"},{"$f":"'[1]Протокол ШЭ ВОШ по предмету'!$N$2","v":"Мирасова Альфия Миргарифановна"},"Муниципальное бюджетное общеобразовательное учреждение \"Школа №27 с углубленным изучением отдельных предметов\" Нижнекамского муниципального района  Республики Татарстан"]
[65,{"$f":"'[1]Протокол ШЭ ВОШ по предмету'!B40","v":"Исмагилова "},{"$f":"'[1]Протокол ШЭ ВОШ по предмету'!C40","v":"Динара"},{"$f":"'[1]Протокол ШЭ ВОШ по предмету'!D40","v":"Айдаровна"},"2005-09-05",{"$f":"'[1]Протокол ШЭ ВОШ по предмету'!F40","v":"ж"},{"$f":"'[1]Протокол ШЭ ВОШ по предмету'!G40","v":"нет"},{"$f":"'[1]Протокол ШЭ ВОШ по предмету'!H40","v":11},{"$f":"'[1]Протокол ШЭ ВОШ по предмету'!I40","v":11},{"$f":"'[1]Протокол ШЭ ВОШ по предмету'!J40","v":11},{"$f":"'[1]Протокол ШЭ ВОШ по предмету'!K40","v":50},{"$f":"'[1]Протокол ШЭ ВОШ по предмету'!L40","v":"участник"},{"$f":"'[1]Протокол ШЭ ВОШ по предмету'!M40","v":"нет"},{"$f":"'[1]Протокол ШЭ ВОШ по предмету'!$N$2","v":"Мирасова Альфия Миргарифановна"},"Муниципальное бюджетное общеобразовательное учреждение \"Школа №27 с углубленным изучением отдельных предметов\" Нижнекамского муниципального района  Республики Татарстан"]